bitfinex/quotes_SOLUSD_20240727
["timestamp","ask_amount","ask_price","bid_price","bid_amount"]
[1722050406711,0.34,183.21,183.2,5.4585]
[1722050407013,38.7013,183.27,183.22,5.4576]
[1722050407221,33.2448,183.27,183.23,5.4575]
[1722050407600,32.1107,183.27,183.23,5.4575]
[1722050407995,32.1107,183.27,183.21,19.1029]
[1722050408919,5.4568,183.26,183.21,19.1029]
[1722050409306,45.34,183.25,183.21,19.1029]
[1722050409903,45.34,183.25,183.21,25.265]
[1722050410113,45.34,183.25,183.23,5.4575]
[1722050410114,0.34,183.25,183.23,5.4575]
[1722050410905,15.0342,183.31,183.24,5.4572]
[1722050411102,11.62,183.29,183.24,5.4572]
[1722050412027,5.4557,183.3,183.25,5.4568]
[1722050412418,5.4552,183.31,183.26,5.4566]
[1722050413007,17.0752,183.31,183.26,5.4566]
[1722050413517,0.34,183.3,183.26,5.4566]
[1722050413824,45.34,183.3,183.26,5.4566]
[1722050414039,11.62,183.33,183.27,25.2606]
[1722050414338,11.62,183.3,183.24,13.643]
[1722050415032,5.4555,183.3,183.26,5.4567]
[1722050415324,17.0752,183.31,183.26,5.4567]
[1722050415528,0.34,183.29,183.26,5.4567]
[1722050416731,11.62,183.32,183.27,5.4563]
[1722050417101,17.0749,183.32,183.27,5.4563]
[1722050417530,5.4552,183.31,183.26,19.0978]
[1722050417821,5.4552,183.31,183.25,11.62]
[1722050417822,17.0758,183.29,183.25,5.4569]
[1722050418019,11.62,183.27,183.23,19.1011]
[1722050418219,11.62,183.26,183.23,19.1011]
[1722050418422,0.17,183.25,183.23,19.1011]
[1722050418623,0.34,183.25,183.23,19.1011]
[1722050420223,0.28,183.25,183.24,5.4573]
[1722050420431,0.28,183.25,183.23,19.1013]
[1722050421419,0.28,183.25,183.24,5.4573]
[1722050423230,20.0,183.34,183.25,13.6419]
[1722050423530,20.0,183.34,183.28,5.4558]
[1722050423717,11.62,183.32,183.28,5.4558]
[1722050424223,11.62,183.33,183.27,13.6405]
[1722050424431,11.62,183.34,183.3,5.4555]
[1722050424812,11.62,183.34,183.29,5.4557]
[1722050424813,11.62,183.33,183.29,5.4557]
[1722050425435,17.0744,183.34,183.3,5.4554]
[1722050425730,11.62,183.36,183.29,25.2589]
[1722050425938,5.4542,183.35,183.3,5.4554]
[1722050426114,17.0742,183.35,183.3,5.4554]
[1722050426431,5.4542,183.35,183.3,5.4554]
[1722050426733,5.4544,183.34,183.3,5.4554]
[1722050426934,45.34,183.33,183.3,5.4554]
[1722050427114,37.52661953,183.4,183.31,5.455]
[1722050427115,17.0738,183.36,183.31,5.455]
[1722050428021,11.62,183.34,183.29,5.4555]
[1722050428327,11.62,183.32,183.27,5.4563]
[1722050428533,50.4552,183.31,183.26,5.4566]
[1722050428908,0.34,183.3,183.27,5.4564]
[1722050431913,0.34,183.3,183.28,5.456]
[1722050432326,0.17,183.3,183.29,5.4558]
[1722050432530,11.62,183.33,183.29,5.4558]
[1722050432710,0.34,183.32,183.29,5.4558]
[1722050433825,0.34,183.32,183.3,5.4553]
[1722050434025,0.34,183.32,183.31,5.4552]
[1722050434728,0.34,183.32,183.3,19.0939]
[1722050435322,45.0,183.33,183.3,19.0939]
[1722050435523,0.17,183.32,183.3,19.0939]
[1722050437038,0.17,183.32,183.3,13.6385]
[1722050440531,0.17,183.32,183.3,19.0939]
[1722050441455,0.17,183.32,183.3,13.6385]
[1722050441753,11.62,183.37,183.3,25.2585]
[1722050442233,45.0,183.36,183.32,5.4548]
[1722050442937,5.4532,183.38,183.32,25.2567]
[1722050443140,17.0726,183.4,183.35,5.4537]
[1722050444442,5.4526,183.4,183.35,5.4537]
[1722050444846,11.62,183.39,183.34,13.6353]
[1722050445054,62.0733,183.38,183.34,13.6353]
[1722050445563,0.34,183.37,183.34,13.6353]
[1722050445861,5.4555,183.31,183.26,16.0258]
[1722050446159,11.62,183.31,183.26,16.0258]
[1722050446358,17.0753,183.31,183.26,5.4564]
[1722050446571,0.34,183.3,183.26,5.4564]
[1722050446856,0.34,183.3,183.27,5.4563]
[1722050447458,0.34,183.3,183.28,5.4561]
[1722050448158,11.62,183.29,183.22,6.5093]
[1722050448363,11.62,183.28,183.22,6.5093]
[1722050448533,56.79,183.27,183.21,13.6453]
[1722050448733,11.62,183.25,183.21,13.6453]
[1722050449043,45.17,183.27,183.21,13.6453]
[1722050449044,0.17,183.24,183.21,13.6453]
[1722050449247,0.17,183.25,183.21,13.6453]
[1722050449559,0.34,183.25,183.21,13.6453]
[1722050450128,56.62,183.27,183.23,5.4576]
[1722050450348,0.34,183.26,183.21,13.6453]
[1722050450830,0.34,183.26,183.23,5.4575]
[1722050451842,0.34,183.26,183.24,5.4572]
[1722050452456,0.34,183.26,183.25,5.457]
[1722050452649,33.1704,183.3,183.26,5.4567]
[1722050452851,45.0,183.29,183.26,5.4567]
[1722050454354,45.0,183.29,183.25,5.4569]
[1722050454355,0.34,183.28,183.25,5.4569]
[1722050456554,17.4164,183.28,183.23,13.6434]
[1722050456760,11.62,183.24,183.21,5.4581]
[1722050457362,11.62,183.26,183.22,5.4578]
[1722050457658,56.62,183.27,183.22,5.4578]
[1722050457860,0.34,183.26,183.22,5.4578]
[1722050458950,0.34,183.26,183.2,13.6461]
[1722050459154,5.7967,183.26,183.21,5.4581]
[1722050459469,0.34,183.26,183.23,5.4573]
[1722050459635,0.34,183.26,183.24,5.4572]
[1722050459837,17.0758,183.29,183.24,5.4572]
[1722050460042,45.17,183.28,183.24,5.4572]
[1722050460243,0.17,183.27,183.24,5.4572]
[1722050460459,0.17,183.27,183.25,5.4568]
[1722050460667,0.17,183.28,183.24,13.6427]
[1722050460871,5.4562,183.28,183.24,13.6427]
[1722050461072,5.4567,183.26,183.21,19.1036]
[1722050461242,11.96,183.25,183.21,19.1036]
[1722050461447,17.417,183.25,183.21,13.6455]
[1722050461867,11.96,183.25,183.21,19.1036]
[1722050462075,0.34,183.25,183.21,19.1036]
[1722050462765,0.34,183.25,183.21,13.6455]
[1722050462980,11.62,183.28,183.21,25.2655]
[1722050463146,0.34,183.27,183.25,5.457]
[1722050463470,45.34,183.28,183.25,5.457]
[1722050463856,45.34,183.28,183.24,5.4572]
[1722050464065,0.34,183.28,183.24,5.4572]
[1722050464265,0.34,183.28,183.23,19.101]
[1722050464568,5.4564,183.27,183.23,13.6435]
[1722050464966,5.7962,183.28,183.23,19.1011]
[1722050465675,0.34,183.28,183.21,5.458]
[1722050465877,5.7964,183.27,183.22,5.4577]
[1722050466176,5.7964,183.27,183.23,1.09138291]
[1722050466861,5.7964,183.27,183.22,5.4577]
[1722050467174,5.4567,183.26,183.22,5.4577]
[1722050467956,0.34,183.25,183.22,5.4577]
[1722050468156,0.34,183.25,183.2,13.646]
[1722050468157,5.4574,183.24,183.2,13.646]
[1722050468648,5.4576,183.23,183.17,13.6483]
[1722050468849,0.34,183.22,183.17,19.1074]
[1722050469155,0.34,183.22,183.12,39.8116]
[1722050469156,5.459,183.19,183.14,13.6504]
[1722050469859,5.4585,183.2,183.15,5.4599]
[1722050470372,0.34,183.19,183.11,13.6527]
[1722050470591,5.4597,183.16,183.11,19.1136]
[1722050470766,0.34,183.15,183.11,19.1136]
[1722050471079,0.34,183.15,183.07,13.6552]
[1722050472172,5.4603,183.14,183.09,5.4615]
[1722050472480,45.34,183.13,183.09,5.4615]
[1722050473091,50.8006,183.13,183.08,5.462]
[1722050473492,45.34,183.13,183.09,13.6539]
[1722050473852,45.34,183.13,183.07,5.4622]
[1722050473853,21.4117,183.13,183.07,5.4622]
[1722050474181,45.0,183.12,183.07,5.4623]
[1722050474356,0.34,183.11,183.08,5.462]
[1722050474563,11.5954,183.15,183.1,5.4614]
[1722050474783,45.34,183.14,183.1,5.4614]
[1722050475075,50.8003,183.14,183.09,5.4617]
[1722050475780,5.4606,183.13,183.08,5.462]
[1722050475968,0.34,183.12,183.08,5.462]
[1722050476490,5.4597,183.16,183.11,5.4611]
[1722050476788,5.4603,183.14,183.09,19.1155]
[1722050477474,50.46,183.15,183.11,5.4611]
[1722050477887,0.34,183.14,183.1,5.4614]
[1722050478260,0.34,183.14,183.09,19.1155]
[1722050478761,5.8003,183.14,183.1,5.4614]
[1722050479877,0.34,183.14,183.1,5.4614]
[1722050480582,0.17,183.14,183.11,5.4611]
[1722050480787,0.17,183.15,183.11,5.4611]
[1722050480965,0.34,183.15,183.11,5.4611]
[1722050481167,5.8,183.15,183.11,5.4611]
[1722050481681,0.34,183.15,183.11,5.4611]
[1722050482389,5.8,183.15,183.11,5.4611]
[1722050483181,5.8,183.15,183.09,13.6538]
[1722050483385,5.8,183.15,183.1,5.4614]
[1722050483887,55.1854294,183.21,183.12,13.6517]
[1722050484093,55.1854294,183.21,183.1,29.3801]
[1722050484094,15.8727,183.21,183.1,29.3801]
[1722050484302,15.8727,183.25,183.18,13.6472]
[1722050484481,5.4582,183.21,183.16,5.4594]
[1722050484975,15.8727,183.25,183.15,13.6497]
[1722050485180,5.4579,183.22,183.17,5.4593]
[1722050486291,0.34,183.21,183.17,5.4593]
[1722050486785,5.4592,183.18,183.12,13.6521]
[1722050487001,0.34,183.17,183.13,5.4605]
[1722050487287,0.34,183.17,183.15,5.4599]
[1722050487589,5.4588,183.19,183.14,5.4602]
[1722050487769,5.7991,183.18,183.14,5.4602]
[1722050488165,5.7991,183.18,183.12,13.6521]
[1722050488402,0.34,183.18,183.14,5.4602]
[1722050488567,45.34,183.18,183.14,5.4602]
[1722050489076,45.34,183.18,183.12,13.6521]
[1722050489077,5.4595,183.17,183.12,13.6521]
[1722050489392,0.17,183.16,183.12,19.1127]
[1722050489572,0.17,183.16,183.13,5.4605]
[1722050489884,0.17,183.17,183.14,5.4602]
[1722050491375,0.17,183.17,183.15,5.4599]
[1722050491867,5.4576,183.23,183.16,13.6487]
[1722050492066,40.0223,183.27,183.19,5.4587]
[1722050492879,6.3807,183.27,183.18,13.6472]
[1722050493077,21.3297,183.25,183.19,5.4585]
[1722050493669,21.3297,183.25,183.2,5.4583]
[1722050494470,45.34,183.24,183.2,5.4583]
[1722050495587,35.8727,183.29,183.14,1.09170076]
[1722050495778,15.8727,183.29,183.24,5.4572]
[1722050495976,15.8727,183.29,183.23,5.4575]
[1722050496696,5.4564,183.27,183.22,19.102]
[1722050497184,0.34,183.26,183.22,19.102]
[1722050497780,0.34,183.26,183.23,5.4575]
[1722050498088,0.34,183.26,183.24,5.4573]
[1722050499284,5.4564,183.27,183.22,19.102]
[1722050499489,0.34,183.26,183.22,19.102]
[1722050501493,0.34,183.26,183.23,5.4575]
[1722050502981,0.34,183.27,183.24,5.4572]
[1722050506501,0.34,183.28,183.24,5.4572]
[1722050507189,5.4555,183.31,183.23,1.09128955]
[1722050507386,5.4555,183.31,183.2,1.09117082]
[1722050507705,5.4555,183.31,183.21,1.09117129]
[1722050507899,21.73806319,183.34,183.21,1.09117129]
[1722050508112,5.4551,183.32,183.27,5.4563]
[1722050508293,5.4553,183.31,183.26,19.0979]
[1722050508601,0.17,183.3,183.23,19.1013]
[1722050508806,5.4564,183.27,183.23,13.6439]
[1722050509010,0.17,183.26,183.23,13.6439]
[1722050509397,0.17,183.26,183.19,6.1924]
[1722050509398,5.4572,183.25,183.2,5.4582]
[1722050509710,13.6394,183.3,183.19,13.6465]
[1722050509887,5.4567,183.26,183.19,13.6465]
[1722050510285,0.34,183.25,183.21,5.4581]
[1722050510791,5.7971,183.25,183.2,5.4584]
[1722050511302,0.34,183.25,183.21,5.4581]
[1722050512092,50.797,183.25,183.21,5.4581]
[1722050512297,45.0,183.24,183.2,5.4585]
[1722050512587,0.34,183.23,183.19,19.1052]
[1722050513208,0.34,183.23,183.2,5.4584]
[1722050514192,0.34,183.23,183.21,5.4581]
[1722050514388,16.0746,183.27,183.22,5.4579]
[1722050514591,16.0746,183.27,183.21,13.645]
[1722050514807,16.0746,183.27,183.23,5.4575]
[1722050515813,0.34,183.26,183.23,5.4575]
[1722050516505,0.34,183.26,183.21,13.645]
[1722050516704,45.34,183.26,183.21,13.645]
[1722050517106,5.457,183.25,183.21,13.645]
[1722050517305,50.4567,183.26,183.21,19.1031]
[1722050517504,0.34,183.25,183.21,19.1031]
[1722050517700,0.34,183.25,183.22,5.4577]
[1722050517897,0.34,183.25,183.23,5.4573]
[1722050519692,15.3679,183.36,183.23,6.0929]
[1722050519895,15.3679,183.36,183.31,5.4549]
[1722050520113,20.8217,183.36,183.3,19.0934]
[1722050520305,15.3679,183.36,183.31,5.4551]
[1722050520510,15.3679,183.36,183.32,5.4549]
[1722050520897,15.3679,183.36,183.33,5.4545]
[1722050521409,15.3679,183.36,183.32,5.4549]
[1722050521708,20.8217,183.36,183.32,5.4549]
[1722050521908,0.34,183.35,183.32,5.4549]
[1722050523501,0.34,183.35,183.31,5.4551]
[1722050524717,0.34,183.35,183.26,13.6412]
[1722050524917,5.4552,183.31,183.26,19.0979]
[1722050525101,5.4552,183.31,183.18,24.3010966]
[1722050525102,20.0,183.33,183.22,13.6445]
[1722050525291,5.4558,183.29,183.22,13.6445]
[1722050525499,0.34,183.28,183.22,13.6445]
[1722050525719,0.34,183.28,183.25,5.4569]
[1722050526028,45.0,183.32,183.26,5.4566]
[1722050526029,0.34,183.27,183.26,5.4566]
[1722050526221,0.34,183.27,183.24,13.6425]
[1722050526440,0.34,183.26,183.24,13.6425]
[1722050526916,45.34,183.27,183.24,13.6425]
[1722050527123,0.34,183.27,183.26,5.4567]
[1722050528401,0.34,183.27,183.24,19.0997]
[1722050528594,45.0,183.28,183.24,19.0997]
[1722050528794,0.34,183.27,183.24,19.0997]
[1722050529118,0.34,183.27,183.22,5.4576]
[1722050529297,0.34,183.27,183.21,13.6454]
[1722050529501,5.4571,183.25,183.21,13.6454]
[1722050529700,45.0,183.24,183.21,13.6454]
[1722050529895,0.34,183.23,183.17,13.6481]
[1722050530118,0.34,183.23,183.2,5.4583]
[1722050530505,0.34,183.23,183.18,5.459]
[1722050530506,5.7976,183.23,183.18,5.459]
[1722050530906,45.0,183.22,183.18,5.459]
[1722050531419,45.0,183.22,183.19,5.4587]
[1722050531420,0.34,183.21,183.19,5.4587]
[1722050531599,0.34,183.21,183.18,5.459]
[1722050532418,0.34,183.21,183.19,5.4587]
[1722050535531,15.3679,183.26,183.22,5.4579]
[1722050535909,15.3679,183.26,183.23,5.4575]
[1722050536114,5.4557,183.3,183.23,13.6435]
[1722050536510,5.4559,183.29,183.23,13.6435]
[1722050537041,21.7465,183.31,183.23,13.6435]
[1722050537922,5.4555,183.3,183.25,5.4567]
[1722050538339,45.34,183.29,183.25,5.4567]
[1722050538531,0.34,183.29,183.25,5.4567]
[1722050539344,0.34,183.29,183.25,13.6419]
[1722050539522,21.7465,183.31,183.26,1.0912734]
[1722050539523,15.3679,183.31,183.26,1.0912734]
[1722050539834,15.3679,183.31,183.28,13.6402]
[1722050540944,0.34,183.3,183.28,13.6402]
[1722050542024,0.34,183.3,183.28,19.0962]
[1722050542223,0.34,183.3,183.29,5.4558]
[1722050542814,0.34,183.3,183.28,19.0962]
[1722050544914,0.34,183.31,183.28,19.0962]
[1722050546640,0.17,183.31,183.29,1.09113205]
[1722050546837,27.3542,183.36,183.31,5.4552]
[1722050547021,0.34,183.35,183.31,5.4552]
[1722050547420,5.7941,183.35,183.31,5.4552]
[1722050547628,5.7941,183.35,183.3,5.4554]
[1722050547942,45.0,183.34,183.3,5.4554]
[1722050548316,0.34,183.33,183.28,19.096]
[1722050548517,0.34,183.33,183.28,13.6402]
[1722050548739,5.4553,183.31,183.26,5.4566]
[1722050549043,45.17,183.3,183.27,5.4563]
[1722050549231,0.17,183.29,183.27,5.4563]
[1722050550842,0.17,183.29,183.25,13.6425]
[1722050550843,15.4807,183.29,183.25,19.0993]
[1722050551034,45.0,183.28,183.22,13.6445]
[1722050551233,0.17,183.27,183.24,5.4572]
[1722050551550,0.34,183.27,183.24,5.4572]
[1722050554946,0.34,183.27,183.25,5.4569]
[1722050556642,0.34,183.27,183.17,1.09137389]
[1722050556643,0.34,183.27,183.26,5.4567]
[1722050556847,15.3107,183.33,183.21,1.09128958]
[1722050557032,45.34,183.32,183.28,5.456]
[1722050558047,50.7949,183.32,183.28,5.456]
[1722050558551,45.34,183.32,183.26,13.6412]
[1722050558848,5.4555,183.3,183.26,13.6412]
[1722050559032,45.0,183.29,183.26,13.6412]
[1722050559237,0.34,183.28,183.26,13.6412]
[1722050563255,0.34,183.28,183.27,5.4564]
[1722050563423,20.7654,183.33,183.28,5.4559]
[1722050563624,15.3107,183.33,183.28,13.6398]
[1722050563849,15.3107,183.33,183.3,5.4554]
[1722050564545,5.4536,183.37,183.31,13.6379]
[1722050566335,50.7938,183.36,183.32,5.4549]
[1722050567356,50.7938,183.36,183.31,13.6379]
[1722050567755,5.4541,183.35,183.31,13.6379]
[1722050567939,0.34,183.34,183.31,13.6379]
[1722050568756,0.34,183.34,183.31,19.0931]
[1722050568972,0.34,183.33,183.32,5.4549]
[1722050569264,45.0,183.36,183.33,5.4546]
[1722050569470,0.34,183.35,183.32,5.4548]
[1722050569762,50.4535,183.37,183.32,5.4548]
[1722050570063,0.34,183.36,183.32,5.4548]
[1722050571666,5.7938,183.36,183.31,19.093]
[1722050571842,45.0,183.35,183.31,19.093]
[1722050572349,0.34,183.34,183.31,19.093]
[1722050574366,0.34,183.34,183.32,5.4548]
[1722050574572,0.34,183.34,183.33,5.4546]
[1722050574863,0.17,183.34,183.33,5.4546]
[1722050576348,21.554,183.38,183.33,5.4546]
[1722050576549,45.34,183.37,183.34,5.4542]
[1722050577048,45.34,183.37,183.32,5.4547]
[1722050577268,45.34,183.37,183.33,5.4544]
[1722050578772,50.7934,183.37,183.32,5.4548]
[1722050579278,50.7934,183.37,183.33,5.4545]
[1722050579461,45.34,183.37,183.33,5.4545]
[1722050579856,50.7936,183.37,183.32,5.4548]
[1722050581071,50.7936,183.37,183.33,5.4545]
[1722050581072,45.34,183.37,183.33,5.4545]
[1722050581573,45.34,183.37,183.31,13.6379]
[1722050581763,45.34,183.37,183.29,5.4557]
[1722050581764,5.4543,183.34,183.29,5.4557]
[1722050581965,45.34,183.33,183.29,5.4557]
[1722050584566,45.34,183.33,183.3,5.4554]
[1722050585761,0.34,183.33,183.3,5.4554]
[1722050587083,11.94,183.33,183.3,5.4554]
[1722050587259,45.0,183.32,183.31,5.4552]
[1722050587459,45.34,183.32,183.31,5.4552]
[1722050588068,0.34,183.32,183.31,5.4552]
[1722050588673,11.6,183.36,183.33,13.6365]
[1722050588874,16.1008,183.38,183.33,13.6365]
[1722050588875,11.6,183.37,183.33,13.6365]
[1722050589195,16.1008,183.38,183.34,5.4541]
[1722050589395,16.1008,183.38,183.35,5.4538]
[1722050590258,16.1008,183.38,183.34,5.4542]
[1722050590873,45.34,183.37,183.35,5.4538]
[1722050592688,45.34,183.37,183.34,5.4542]
[1722050592889,21.0103,183.43,183.38,5.453]
[1722050593271,5.452,183.42,183.37,5.4534]
[1722050593774,15.5584,183.43,183.38,5.4529]
[1722050594491,45.0,183.42,183.38,5.4529]
[1722050595289,0.34,183.41,183.38,5.4529]
[1722050597365,0.34,183.41,183.39,5.4528]
[1722050597572,0.34,183.41,183.4,5.4525]
[1722050597874,0.34,183.41,183.39,19.0848]
[1722050598292,0.34,183.41,183.39,13.632]
[1722050599478,5.4513,183.45,183.39,13.632]
[1722050599786,5.4511,183.45,183.4,5.4522]
[1722050600091,16.6349,183.46,183.41,5.4522]
[1722050600789,45.0,183.45,183.41,5.4522]
[1722050600963,5.4508,183.46,183.39,13.632]
[1722050601166,5.4507,183.47,183.42,5.4518]
[1722050601369,5.4508,183.46,183.42,5.4518]
[1722050601585,5.4508,183.46,183.41,5.4522]
[1722050601789,5.4511,183.45,183.4,5.4525]
[1722050602285,0.34,183.44,183.4,5.4525]
[1722050602783,5.4517,183.43,183.39,13.632]
[1722050602983,0.34,183.42,183.39,13.632]
[1722050603197,5.792,183.42,183.38,5.4528]
[1722050603495,45.0,183.41,183.36,13.6342]
[1722050603793,20.0,183.4,183.32,13.6367]
[1722050603976,5.4534,183.38,183.33,5.4543]
[1722050604370,45.34,183.37,183.33,5.4543]
[1722050604582,45.34,183.37,183.32,13.6367]
[1722050604583,45.34,183.37,183.34,5.4542]
[1722050604780,45.0,183.36,183.34,5.4542]
[1722050604980,45.0,183.38,183.34,5.4542]
[1722050604981,0.34,183.35,183.34,5.4542]
[1722050605177,0.34,183.35,183.29,33.4404]
[1722050605178,0.34,183.35,183.33,5.4546]
[1722050605504,0.34,183.35,183.31,13.6374]
[1722050605805,5.794,183.35,183.31,19.0926]
[1722050605996,45.0,183.34,183.31,13.6374]
[1722050606490,0.34,183.33,183.31,13.6374]
[1722050606699,0.34,183.33,183.31,19.0925]
[1722050608694,0.34,183.33,183.32,5.4549]
[1722050609076,0.34,183.33,183.31,19.0926]
[1722050609278,0.34,183.33,183.31,13.6374]
[1722050609478,0.34,183.33,183.3,5.4554]
[1722050611198,11.6,183.32,183.3,5.4554]
[1722050611400,45.34,183.31,183.3,5.4554]
[1722050612610,45.34,183.31,183.28,13.6402]
[1722050612910,45.0,183.3,183.28,13.6402]
[1722050613094,45.0,183.32,183.29,5.4555]
[1722050613295,0.34,183.31,183.3,5.4554]
[1722050617686,0.34,183.31,183.29,5.4557]
[1722050618086,0.34,183.31,183.3,5.4555]
[1722050618705,0.34,183.31,183.28,19.0961]
[1722050618896,0.34,183.31,183.29,5.4556]
[1722050620008,0.34,183.31,183.28,19.0962]
[1722050620201,11.6,183.29,183.26,5.4564]
[1722050620400,56.94,183.28,183.25,13.6424]
[1722050620717,11.6,183.27,183.25,5.457]
[1722050620905,45.34,183.26,183.25,5.457]
[1722050626315,56.94,183.26,183.22,5.4577]
[1722050626621,11.6,183.24,183.2,13.6456]
[1722050626791,56.6,183.23,183.2,13.6456]
[1722050626990,0.34,183.22,183.2,13.6456]
[1722050627598,0.34,183.22,183.21,5.4581]
[1722050630797,0.17,183.22,183.21,5.4581]
[1722050632804,5.4567,183.26,183.22,5.4578]
[1722050633008,0.17,183.25,183.22,5.4578]
[1722050633323,0.17,183.25,183.2,13.6456]
[1722050633324,45.34,183.25,183.23,5.4575]
[1722050633722,56.94,183.25,183.22,5.4578]
[1722050634014,56.94,183.25,183.21,5.4579]
[1722050634222,56.94,183.25,183.22,5.4578]
[1722050635305,45.34,183.25,183.22,5.4578]
[1722050637727,56.94,183.25,183.21,5.4581]
[1722050638124,11.6,183.24,183.21,5.4581]
[1722050638304,56.6,183.23,183.19,5.4586]
[1722050638610,0.34,183.22,183.19,5.4586]
[1722050639125,11.94,183.22,183.19,5.4586]
[1722050639320,11.94,183.22,183.17,13.6481]
[1722050639321,11.94,183.22,183.2,5.4584]
[1722050640108,0.34,183.22,183.2,5.4584]
[1722050642526,0.34,183.22,183.19,13.6466]
[1722050642527,0.34,183.22,183.21,5.4582]
[1722050647239,0.34,183.22,183.19,13.6466]
[1722050647720,11.6,183.2,183.16,13.6489]
[1722050648036,65.0,183.23,183.1,15.4997]
[1722050648037,11.6,183.17,183.12,13.6518]
[1722050648233,11.6,183.17,183.13,5.4605]
[1722050648528,17.0603,183.14,183.08,13.655]
[1722050648832,45.0,183.13,183.1,5.4612]
[1722050649036,45.34,183.13,183.1,5.4612]
[1722050649205,33.6461,183.21,183.11,13.6527]
[1722050649527,21.32271053,183.23,183.11,13.6527]
[1722050649528,5.4595,183.17,183.12,5.4607]
[1722050649727,56.6,183.16,183.11,13.6527]
[1722050649933,0.34,183.15,183.11,13.6527]
[1722050650113,11.94,183.15,183.11,13.6527]
[1722050650431,45.0,183.14,183.11,13.6527]
[1722050650809,42.84,183.14,183.12,5.4608]
[1722050651010,42.84,183.14,183.13,5.4606]
[1722050651332,11.6,183.16,183.13,5.4606]
[1722050651629,11.6,183.16,183.14,5.4603]
[1722050652744,11.6,183.16,183.12,5.4608]
[1722050653039,56.6,183.15,183.12,5.4608]
[1722050653718,56.6,183.15,183.11,13.6527]
[1722050654049,56.6,183.15,183.12,5.4606]
[1722050654214,56.6,183.15,183.13,5.4606]
[1722050656039,56.6,183.15,183.11,13.6527]
[1722050657038,56.6,183.15,183.11,19.1136]
[1722050657231,56.6,183.15,183.12,5.4608]
[1722050659946,45.0,183.15,183.12,5.4608]
[1722050660143,11.6,183.15,183.12,5.4608]
[1722050660319,56.6,183.16,183.13,5.4605]
[1722050660755,56.6,183.16,183.14,5.4603]
[1722050660931,56.6,183.16,183.13,5.4605]
[1722050661138,45.0,183.16,183.13,5.4605]
[1722050661439,11.6,183.17,183.15,5.4598]
[1722050661643,5.4585,183.2,183.15,5.4597]
[1722050661947,45.0,183.19,183.17,5.4593]
[1722050662167,15.6524,183.23,183.17,13.6479]
[1722050662452,15.6524,183.23,183.19,5.4585]
[1722050662453,11.6,183.21,183.19,5.4585]
[1722050663542,11.6,183.21,183.18,5.459]
[1722050667556,11.6,183.21,183.17,13.6479]
[1722050667848,11.6,183.19,183.14,13.6506]
[1722050668148,11.6,183.16,183.14,13.6506]
[1722050668328,50.4591,183.18,183.14,13.6506]
[1722050668329,11.6,183.15,183.14,13.6506]